bitfinex/quotes_SOLUSD_20240717
["timestamp","ask_amount","ask_price","bid_price","bid_amount"]
[1721179857131,6.2254,163.26,163.21,6.1269]
[1721179857337,6.2254,163.26,163.22,1.22505065]
[1721179857653,6.2254,163.26,163.2,6.1272]
[1721179857828,6.2254,163.26,163.22,6.1263]
[1721179858023,6.2254,163.26,163.23,1.22502632]
[1721179858227,6.2254,163.26,163.24,1.22502749]
[1721179858651,6.2254,163.26,163.22,6.1263]
[1721179858845,6.2254,163.26,163.21,15.3171]
[1721179859562,7.328766,163.26,163.18,15.32]
[1721179859724,6.2254,163.26,163.19,10.0]
[1721179859931,6.2254,163.26,163.23,6.1261]
[1721179860142,6.2254,163.26,163.24,1.22502476]
[1721179860344,17.231966,163.29,163.24,1.22502476]
[1721179860345,16.1286,163.29,163.24,7.35082476]
[1721179861261,16.1286,163.29,163.25,6.1254]
[1721179861548,16.1286,163.29,163.23,6.1262]
[1721179861755,16.1286,163.29,163.24,7.35075059]
[1721179862067,17.231966,163.29,163.22,6.1263]
[1721179862361,23.356166,163.29,163.21,25.3174]
[1721179862528,17.231966,163.29,163.21,31.4442]
[1721179862958,23.355966,163.29,163.21,31.4442]
[1721179863829,17.231966,163.29,163.22,6.1265]
[1721179864937,17.231966,163.29,163.21,31.4444]
[1721179865836,17.231966,163.29,163.22,6.1265]
[1721179866040,17.231966,163.29,163.24,6.1258]
[1721179866041,16.1286,163.29,163.24,6.1258]
[1721179866254,17.231966,163.29,163.23,15.3149]
[1721179867249,17.231966,163.29,163.22,6.1263]
[1721179867436,17.231966,163.29,163.23,6.1261]
[1721179868144,17.231966,163.29,163.22,21.4428]
[1721179868349,17.231966,163.29,163.24,6.1257]
[1721179868535,17.231966,163.29,163.25,1.22496761]
[1721179868736,16.1286,163.29,163.26,1.22496761]
[1721179869044,16.1286,163.29,163.27,1.22481881]
[1721179869357,6.0823,163.3,163.28,6.1244]
[1721179869566,6.0823,163.3,163.29,1.22466165]
[1721179870033,6.0823,163.3,163.27,6.1247]
[1721179870657,6.0823,163.3,163.25,25.3138]
[1721179870965,6.0823,163.3,163.27,6.1245]
[1721179871139,6.0823,163.3,163.29,6.124]
[1721179871465,16.3514,163.33,163.29,6.124]
[1721179872064,16.3514,163.33,163.3,1.22450385]
[1721179873166,16.3514,163.33,163.31,1.22442918]
[1721179873343,16.3514,163.33,163.29,1.2244292]
[1721179873546,16.3514,163.33,163.3,1.22435421]
[1721179873759,15.3469,163.38,163.33,10.0]
[1721179874060,6.26,163.45,163.37,6.1208]
[1721179874263,1.103366,163.44,163.38,1.22395149]
[1721179875157,7.221766,163.44,163.39,1.22394013]
[1721179875349,1.103366,163.44,163.37,1.22391483]
[1721179876048,36.863366,163.45,163.37,1.22391483]
[1721179876259,6.26,163.45,163.4,6.1198]
[1721179876457,6.26,163.45,163.41,1.22371339]
[1721179876458,7.363366,163.45,163.41,1.22371339]
[1721179877583,7.363366,163.45,163.38,21.4216]
[1721179877764,7.363366,163.45,163.39,1.2237474]
[1721179877964,7.363366,163.45,163.38,21.4216]
[1721179878266,7.363366,163.45,163.38,15.301]
[1721179878564,7.363366,163.45,163.35,10.0]
[1721179878761,0.17,163.44,163.36,1.22385691]
[1721179879070,1.443366,163.44,163.36,1.22385691]
[1721179879362,1.443366,163.44,163.37,6.121]
[1721179879570,1.443366,163.44,163.38,1.22390861]
[1721179881058,1.443366,163.44,163.39,1.22390712]
[1721179881249,1.443366,163.44,163.4,7.34377575]
[1721179881250,0.17,163.44,163.4,7.34377575]
[1721179881444,7.363366,163.45,163.41,6.1195]
[1721179881859,6.26,163.45,163.42,1.22374258]
[1721179882072,6.26,163.45,163.43,1.22367994]
[1721179882367,6.26,163.45,163.43,7.34237994]
[1721179882544,21.2728,163.51,163.43,7.34237994]
[1721179882745,1.103366,163.5,163.45,6.1178]
[1721179882951,22.376166,163.51,163.46,1.22339043]
[1721179883245,22.376166,163.51,163.45,15.2949]
[1721179883246,21.2728,163.51,163.45,15.2949]
[1721179883578,1.103366,163.5,163.42,15.2977]
[1721179884076,1.103366,163.5,163.42,21.4165]
[1721179884751,7.219666,163.5,163.42,15.2977]
[1721179885061,0.34,163.49,163.42,21.4167]
[1721179885368,0.34,163.49,163.39,10.0]
[1721179885369,1.103366,163.48,163.39,15.3006]
[1721179885561,0.34,163.47,163.39,21.4205]
[1721179885867,0.34,163.47,163.35,15.3036]
[1721179886066,12.7752,163.46,163.36,10.0]
[1721179886268,0.17,163.45,163.37,6.1209]
[1721179886569,16.1825,163.44,163.38,7.3444961]
[1721179887146,1.103366,163.43,163.38,6.1206]
[1721179887461,17.285866,163.44,163.39,6.1202]
[1721179887661,17.285866,163.44,163.38,6.1206]
[1721179887861,17.285866,163.44,163.37,21.4227]
[1721179888269,16.1825,163.44,163.4,6.1199]
[1721179888768,16.1825,163.44,163.39,6.1202]
[1721179888946,16.1825,163.44,163.38,6.1206]
[1721179889144,1.103366,163.43,163.36,6.1212]
[1721179889375,1.103366,163.43,163.35,10.0]
[1721179889571,1.103366,163.43,163.33,10.0]
[1721179889572,1.103366,163.43,163.36,21.4239]
[1721179889873,1.103366,163.42,163.36,21.4239]
[1721179890075,1.103366,163.42,163.37,1.22396483]
[1721179890574,16.1825,163.44,163.43,15.297]
[1721179890778,16.1825,163.44,163.4,6.1195]
[1721179890982,16.1825,163.44,163.38,10.0]
[1721179891153,6.6574,163.46,163.39,15.3006]
[1721179891357,6.6574,163.46,163.41,6.1195]
[1721179891574,6.6574,163.46,163.42,6.51743262]
[1721179891756,6.6574,163.46,163.43,0.39830824]
[1721179892076,6.6574,163.46,163.43,1.22358328]
[1721179892477,17.011366,163.48,163.43,6.1187]
[1721179892676,15.908,163.48,163.44,1.2233769]
[1721179893667,15.908,163.48,163.45,1.22322757]
[1721179893979,17.011366,163.48,163.43,1.2234641]
[1721179894271,17.011366,163.48,163.4,6.1199]
[1721179894451,17.011366,163.48,163.39,15.3006]
[1721179894452,0.34,163.47,163.39,15.3006]
[1721179894653,1.103366,163.46,163.39,21.4208]
[1721179895487,1.103366,163.45,163.39,15.3006]
[1721179895786,0.34,163.47,163.39,15.3006]
[1721179895787,7.560666,163.47,163.39,15.3006]
[1721179895968,1.443366,163.47,163.39,21.4209]
[1721179896169,1.103366,163.47,163.39,15.3006]
[1721179896364,1.103366,163.47,163.41,6.1194]
[1721179896685,1.103366,163.47,163.4,6.1199]
[1721179896885,1.103366,163.47,163.42,6.119]
[1721179897086,17.011366,163.48,163.42,6.119]
[1721179897287,15.908,163.48,163.43,6.1187]
[1721179897787,6.4221,163.5,163.44,10.0]
[1721179897989,6.4221,163.5,163.48,6.1168]
[1721179898380,1.103366,163.6,163.51,6.1155]
[1721179898571,6.1129,163.59,163.49,15.2914]
[1721179898767,1.103366,163.58,163.49,15.2914]
[1721179899074,6.5308,163.54,163.49,15.2914]
[1721179899270,7.634166,163.54,163.47,0.37571672]
[1721179899609,7.634166,163.54,163.46,22.1280637]
[1721179899610,0.17,163.53,163.46,22.1280637]
[1721179899908,1.103366,163.52,163.47,0.7174445]
[1721179900065,1.103366,163.51,163.47,0.7174445]
[1721179900403,1.103366,163.52,163.47,0.7174445]
[1721179900767,1.103366,163.51,163.47,0.7174445]
[1721179900995,1.443366,163.53,163.47,0.7174445]
[1721179901170,1.443366,163.53,163.43,15.2967]
[1721179901490,1.443366,163.53,163.44,1.22071442]
[1721179901491,6.1161,163.51,163.44,1.22071442]
[1721179901688,6.1161,163.51,163.4,10.0]
[1721179901689,6.1166,163.49,163.41,6.1195]
[1721179901990,1.103366,163.48,163.41,6.1195]
[1721179902495,1.103366,163.48,163.42,6.1191]
[1721179902882,1.103366,163.49,163.42,6.1191]
[1721179903081,1.273366,163.48,163.42,6.1191]
[1721179903480,1.103366,163.48,163.42,6.1191]
[1721179904070,1.273366,163.49,163.42,6.1191]
[1721179905692,1.273366,163.49,163.42,15.2973]
[1721179905902,0.17,163.5,163.43,1.22349923]
[1721179906071,37.134166,163.54,163.46,6.1174]
[1721179906270,37.134166,163.54,163.47,1.22323993]
[1721179906477,37.134166,163.54,163.46,6.1176]
[1721179907397,0.34,163.53,163.47,1.22325023]
[1721179907568,1.103366,163.52,163.46,6.1176]
[1721179907768,1.103366,163.52,163.47,1.22328747]
[1721179907974,30.943366,163.51,163.39,10.0]
[1721179908191,30.773366,163.51,163.41,6.1193]
[1721179908502,6.1166,163.49,163.4,21.4188]
[1721179908679,1.443366,163.48,163.4,21.4188]
[1721179909081,1.103366,163.48,163.41,6.1193]
[1721179909390,1.103366,163.49,163.42,1.22354873]
[1721179909588,1.103366,163.49,163.43,1.22350576]
[1721179909790,1.103366,163.49,163.42,15.2973]
[1721179909993,1.103366,163.48,163.4,6.1198]
[1721179910219,1.103366,163.48,163.41,0.63973715]
[1721179910392,1.103366,163.49,163.42,6.1191]
[1721179910782,1.103366,163.49,163.41,6.1195]
[1721179911012,1.103366,163.49,163.42,1.22350696]
[1721179911306,1.103366,163.48,163.39,15.3005]
[1721179911511,6.1168,163.49,163.41,6.1195]
[1721179911691,1.103366,163.48,163.4,16.1195]
[1721179911890,1.103366,163.48,163.41,6.1194]
[1721179912105,7.220266,163.48,163.4,6.1199]
[1721179912303,1.103366,163.48,163.4,6.1199]
[1721179912589,1.103366,163.48,163.41,0.682129]
[1721179912789,1.103366,163.48,163.4,16.1199]
[1721179913013,7.220266,163.48,163.4,16.1199]
[1721179913213,1.103366,163.47,163.4,16.1199]
[1721179913418,1.103366,163.47,163.41,1.22356525]
[1721179913593,1.103366,163.48,163.41,1.22356525]
[1721179913790,7.220366,163.48,163.4,16.1199]
[1721179913994,7.220366,163.48,163.4,6.1199]
[1721179914315,16.150066,163.48,163.4,6.1199]
[1721179914519,16.150066,163.48,163.4,16.1199]
[1721179915012,15.0467,163.48,163.41,0.53187694]
[1721179915218,15.0467,163.48,163.42,10.0]
[1721179915511,15.0467,163.48,163.41,15.2982]
[1721179916013,15.0467,163.48,163.42,6.1188]
[1721179916714,15.0467,163.48,163.41,15.2982]
[1721179917019,15.0467,163.48,163.42,0.37186342]
[1721179917194,15.0467,163.48,163.43,0.37184068]
[1721179917513,15.0467,163.48,163.42,10.0]
[1721179917996,15.0467,163.48,163.41,15.2982]
[1721179918387,15.0467,163.48,163.41,21.4177]
[1721179919717,21.1636,163.48,163.4,16.1199]
[1721179919918,6.0933,163.47,163.4,16.1199]
[1721179920320,6.0933,163.47,163.41,10.0]
[1721179920621,6.0933,163.47,163.4,6.1198]
[1721179920996,6.0933,163.47,163.39,10.0]
[1721179921189,6.0933,163.47,163.42,6.1188]
[1721179921387,6.1796,163.51,163.44,10.0]
[1721179921620,6.1796,163.51,163.45,0.61167886]
[1721179921801,6.1796,163.51,163.46,7.02915331]
[1721179922002,6.1796,163.51,163.46,0.91155331]
[1721179922311,6.1796,163.51,163.46,10.91155331]
[1721179922820,6.1796,163.51,163.48,16.1169]
[1721179923116,30.3402016,163.55,163.49,0.91144249]
[1721179923117,36.8584016,163.55,163.49,0.91144249]
[1721179923302,7.3584016,163.55,163.49,0.91144249]
[1721179923698,7.3584016,163.55,163.5,10.0]
[1721179923914,7.3584016,163.55,163.53,6.1147]
[1721179923915,0.8402016,163.55,163.53,6.1147]
[1721179924121,0.8402016,163.55,163.54,1.22270875]
[1721179924411,0.8402016,163.55,163.54,17.33740875]
[1721179924622,0.8402016,163.55,163.54,16.1147]
[1721179925041,0.8402016,163.55,163.54,17.33720781]
[1721179925208,0.8402016,163.55,163.54,16.1147]
[1721179926309,0.8402016,163.55,163.54,10.0]
[1721179926506,0.8402016,163.55,163.54,16.1147]
[1721179927439,0.8402016,163.55,163.54,16.2847]
[1721179927932,0.8402016,163.55,163.54,26.4547]
[1721179928738,22.6882,163.69,163.64,6.1107]
[1721179929031,22.6882,163.69,163.63,15.278]
[1721179929338,22.6882,163.69,163.6,25.2808]
[1721179930112,29.5,163.68,163.57,25.2838]
[1721179930515,1.273366,163.67,163.59,10.0]
[1721179930726,6.1103,163.66,163.57,31.3971]
[1721179930927,7.213166,163.67,163.58,6.1129]
[1721179931213,1.103366,163.67,163.57,25.2838]
[1721179931433,7.213566,163.67,163.58,6.1131]
[1721179931733,6.1109,163.65,163.59,1.22222414]
[1721179931921,6.1109,163.65,163.6,1.22224881]
[1721179932117,7.214466,163.64,163.55,6.1142]
[1721179932339,22.6882,163.69,163.66,6.1098]
[1721179932521,22.6882,163.69,163.67,6.1098]
[1721179932522,6.0547,163.69,163.67,6.1098]
[1721179932846,6.0547,163.69,163.66,6.1101]
[1721179933136,6.0547,163.69,163.64,25.277]
[1721179933137,6.0547,163.69,163.67,6.1098]
[1721179933339,6.0547,163.69,163.68,6.1094]
[1721179933542,0.8402016,163.71,163.68,6.1094]
[1721179933713,0.8402016,163.71,163.69,1.22104938]
[1721179934232,0.8402016,163.71,163.68,6.1094]
[1721179934535,0.8402016,163.71,163.66,15.2749]
[1721179934723,0.8402016,163.71,163.67,1.22168625]
[1721179934925,0.8402016,163.71,163.67,7.33108625]
[1721179935233,0.8402016,163.71,163.67,6.1094]
[1721179936135,0.8402016,163.71,163.68,6.1093]
[1721179936334,0.8402016,163.71,163.68,25.2731]
[1721179937139,0.8402016,163.71,163.7,6.1087]
[1721179939836,0.8402016,163.71,163.69,6.1091]
[1721179940037,0.8402016,163.71,163.68,15.2731]
[1721179940829,0.8402016,163.71,163.68,21.3822]
[1721179941037,0.8402016,163.71,163.68,25.2731]
[1721179941237,0.8402016,163.71,163.69,0.48414235]
[1721179941432,0.8402016,163.71,163.68,15.2731]
[1721179941751,0.8402016,163.71,163.7,6.1087]
[1721179943154,0.8402016,163.71,163.69,6.109]
[1721179943338,0.8402016,163.71,163.68,15.2731]
[1721179943534,0.8402016,163.71,163.68,21.3825]
[1721179943746,0.8402016,163.71,163.68,15.2731]
[1721179944254,0.8402016,163.71,163.7,6.1087]
[1721179945564,0.8402016,163.71,163.68,15.2731]
[1721179945943,0.8402016,163.71,163.68,21.3824]
[1721179946566,0.8402016,163.71,163.68,21.3825]
[1721179946735,0.8402016,163.71,163.68,15.2731]
[1721179946941,0.8402016,163.71,163.66,6.1102]
[1721179947136,0.8402016,163.71,163.67,6.1098]
[1721179947375,0.8402016,163.71,163.68,6.1093]
[1721179947651,0.8402016,163.71,163.66,6.1099]
[1721179948636,1.9435676,163.71,163.66,6.1099]
[1721179948845,1.103366,163.7,163.65,15.2761]
[1721179949044,6.5903,163.69,163.65,15.2761]
[1721179949238,7.693666,163.69,163.65,15.2761]
[1721179949444,7.693666,163.69,163.65,21.3864]
[1721179949658,6.5903,163.69,163.66,6.11]
[1721179949961,6.5903,163.69,163.65,21.3866]
[1721179949962,7.693666,163.69,163.65,21.3866]
[1721179950161,6.5903,163.69,163.66,1.22189723]
[1721179950347,6.5903,163.69,163.68,6.1094]
[1721179950863,7.693666,163.69,163.65,6.1105]
[1721179951155,6.5903,163.69,163.66,6.1101]
[1721179951360,7.693666,163.69,163.65,6.1105]
[1721179951740,6.5903,163.69,163.65,6.1105]
[1721179952151,7.693666,163.69,163.65,6.1105]
[1721179953242,6.5903,163.69,163.64,15.277]
[1721179953438,6.5903,163.69,163.65,6.1105]
[1721179953638,1.103366,163.68,163.65,6.1105]
[1721179955440,1.103366,163.68,163.64,21.3879]
[1721179955676,1.103366,163.67,163.61,15.2801]
[1721179955845,1.103366,163.67,163.62,6.1113]
[1721179956169,1.103366,163.67,163.63,6.1109]
[1721179956348,1.103366,163.67,163.61,15.2801]
[1721179956548,7.693666,163.69,163.61,10.0]
[1721179956755,16.1009,163.7,163.69,6.1091]
[1721179956948,16.1009,163.7,163.68,21.3831]
[1721179957349,16.1009,163.7,163.65,21.3862]
[1721179957551,16.1009,163.7,163.66,6.1101]
[1721179957770,16.1009,163.7,163.67,6.1098]
[1721179957975,16.1009,163.7,163.69,6.1091]
[1721179958465,16.1009,163.7,163.67,21.3835]
[1721179958682,16.1009,163.7,163.68,6.1092]
[1721179959279,0.8402016,163.71,163.7,6.1087]
[1721179959642,0.8402016,163.71,163.7,7.02378092]
[1721179959841,0.8402016,163.71,163.7,6.1087]
[1721179960043,0.8402016,163.71,163.69,21.3812]
[1721179960337,0.8402016,163.71,163.7,6.1087]
[1721179960966,0.8402016,163.71,163.7,16.1087]
[1721179961175,0.8402016,163.71,163.7,17.3299541]
[1721179961354,0.8402016,163.71,163.7,17.4999541]
[1721179961745,0.8402016,163.71,163.7,16.1087]
[1721179962150,0.8402016,163.71,163.7,17.32997629]
[1721179962471,0.8402016,163.71,163.7,16.1087]
[1721179962842,0.8402016,163.71,163.7,16.2787]
[1721179963041,0.8402016,163.71,163.7,16.4487]
[1721179963449,0.8402016,163.71,163.7,16.2787]
[1721179963950,0.8402016,163.71,163.7,16.4487]
[1721179964476,0.8402016,163.71,163.7,56.5198]
[1721179965150,15.8227,163.81,163.76,16.1064]
[1721179965475,15.8227,163.81,163.77,7.32681361]
[1721179965674,15.8227,163.81,163.75,15.2671]
[1721179965847,15.8227,163.81,163.75,21.3738]
[1721179966048,15.8227,163.81,163.76,6.1063]
[1721179966673,15.8227,163.81,163.75,15.2671]
[1721179966970,15.8227,163.81,163.75,21.3736]
[1721179967961,15.8227,163.81,163.75,15.2671]
[1721179968168,15.8227,163.81,163.76,10.0]
[1721179968575,15.8227,163.81,163.76,6.1062]
[1721179968780,15.8227,163.81,163.75,15.2671]
[1721179968781,15.8227,163.81,163.77,1.22089597]
[1721179969160,6.1057,163.78,163.7,10.0]
[1721179969370,1.69660988,163.77,163.68,10.0]
[1721179969668,1.69660988,163.77,163.66,16.1099]
[1721179969669,6.1069,163.75,163.66,16.1099]
[1721179969874,7.63334281,163.76,163.68,10.0]
[1721179970082,6.2761,163.77,163.68,16.1091]
[1721179970378,6.2761,163.77,163.67,15.2738]
[1721179970379,6.0342,163.74,163.67,15.2738]
[1721179970681,7.56118051,163.74,163.67,15.2738]
[1721179970878,6.0342,163.74,163.68,1.22157277]
[1721179971087,6.0342,163.74,163.67,21.3836]
[1721179971379,6.0342,163.74,163.69,1.22156465]
[1721179971747,12.1414,163.74,163.67,15.2738]
[1721179972565,1.5269593,163.73,163.64,25.2772]
[1721179972773,1.5269593,163.73,163.67,6.1098]
[1721179972964,1.5269593,163.73,163.68,1.22167609]
[1721179973889,1.5269593,163.73,163.69,1.22167638]
[1721179974188,1.5269593,163.73,163.67,1.22167645]
[1721179974503,1.52709596,163.73,163.68,1.22160181]
[1721179975675,1.52709596,163.73,163.62,55.8365]
[1721179975877,6.108,163.72,163.64,6.1108]
[1721179976075,7.63571215,163.71,163.63,6.1112]
[1721179976271,1.52729848,163.7,163.63,6.1112]
[1721179976682,7.63599848,163.7,163.62,21.3901]
[1721179976887,6.0342,163.74,163.63,6.1111]
[1721179976888,6.1082,163.72,163.63,6.1111]
[1721179977101,1.52734229,163.71,163.62,25.2785]
[1721179977295,1.52734229,163.7,163.62,25.2785]
[1721179977693,1.52734229,163.7,163.63,6.1112]
[1721179978084,1.52734229,163.7,163.63,7.3330742]
[1721179978276,1.52734275,163.71,163.64,6.1108]
[1721179978607,1.52734298,163.7,163.64,6.1108]
[1721179979412,1.52734581,163.69,163.62,21.3898]
[1721179979701,23.0525,163.7,163.62,21.3898]
[1721179979901,1.52742691,163.69,163.63,6.1112]
[1721179980079,24.57994537,163.7,163.64,7.33285629]
[1721179980402,24.57994537,163.7,163.65,1.22188162]
[1721179980574,24.57994537,163.7,163.64,15.2768]
[1721179981002,0.17,163.69,163.59,6.35816635]
[1721179981192,0.17,163.69,163.58,10.0]
[1721179981193,7.97697812,163.69,163.58,25.2829]
[1721179981395,6.1095,163.68,163.58,25.2829]
[1721179981605,1.52761969,163.67,163.58,25.2829]
[1721179981784,1.52761969,163.67,163.6,6.1121]
[1721179981985,1.527663,163.68,163.61,6.112]
[1721179982300,1.527663,163.68,163.6,25.2806]
[1721179982301,1.52759828,163.69,163.6,25.2806]
[1721179982494,1.52759828,163.69,163.61,1.22197661]
[1721179982979,7.63679828,163.69,163.61,6.1119]
[1721179983316,23.0525,163.7,163.61,6.1119]
[1721179983317,24.58001399,163.7,163.63,15.2782]
[1721179983477,24.58001399,163.7,163.64,1.2207184]
[1721179983803,24.58001399,163.7,163.65,1.22193497]
[1721179984181,23.0525,163.7,163.63,21.3895]
[1721179984385,24.57985864,163.7,163.64,6.1107]
[1721179985191,23.0525,163.7,163.65,15.2757]
[1721179985910,23.0525,163.7,163.66,6.11]
[1721179986088,23.0525,163.7,163.66,7.33176573]
[1721179986283,23.0525,163.7,163.66,1.22176573]
[1721179986484,23.0525,163.7,163.66,1.2210062]
[1721179986707,23.0525,163.7,163.62,25.2792]
[1721179986914,23.0525,163.7,163.64,6.1109]
[1721179987209,23.0525,163.7,163.62,35.2792]
[1721179987710,23.0525,163.7,163.63,1.22183244]
[1721179987914,23.0525,163.7,163.64,6.1106]
[1721179988515,23.0525,163.7,163.64,16.1106]
[1721179988702,23.0525,163.7,163.65,6.1104]
[1721179989213,23.0525,163.7,163.64,21.3877]
[1721179989385,23.0525,163.7,163.64,15.2768]
[1721179989581,24.57982095,163.7,163.64,15.2768]
[1721179989907,24.57982095,163.7,163.64,21.3876]
[1721179990094,23.0525,163.7,163.64,15.2768]
[1721179991414,6.6558,163.7,163.67,25.2742]
[1721179991618,21.949,163.74,163.69,6.1089]
[1721179992117,21.949,163.74,163.7,1.14848331]
[1721179994018,21.949,163.74,163.69,16.1087]
[1721179994019,21.949,163.74,163.69,25.2722]
[1721179994222,21.949,163.74,163.69,15.2722]
[1721179994719,21.949,163.74,163.69,21.3811]
[1721179995023,21.949,163.74,163.7,6.1087]
[1721179995521,21.949,163.74,163.69,21.3812]
[1721179996016,21.949,163.74,163.69,15.2722]
[1721179996408,21.949,163.74,163.66,15.2752]
[1721179996409,1.52688892,163.73,163.66,15.2752]
[1721179996719,21.949,163.74,163.67,6.1095]
[1721179996903,1.52710856,163.73,163.67,6.1095]
[1721179997997,1.52710856,163.73,163.67,6.1097]
[1721179998728,1.52710856,163.73,163.65,6.1102]
[1721179998931,1.52710856,163.73,163.63,40.5562]
[1721179999298,1.52710856,163.73,163.65,15.2758]
[1721179999499,1.52710856,163.73,163.63,40.5562]
[1721179999500,21.949,163.74,163.66,10.0]
[1721179999801,21.949,163.74,163.63,30.5562]
[1721179999802,21.949,163.74,163.7,6.1086]
[1721180000012,21.949,163.74,163.67,15.2737]
[1721180000217,21.949,163.74,163.68,6.1093]
[1721180000437,1.52692609,163.73,163.67,21.3834]
[1721180000637,23.47606196,163.74,163.68,6.1094]
[1721180000814,1.52706196,163.73,163.68,6.1094]
[1721180001143,1.52706265,163.73,163.68,6.1094]
[1721180001320,1.52706265,163.73,163.67,15.2737]
[1721180001647,1.52706265,163.73,163.67,21.3834]
[1721180003714,1.52706265,163.73,163.68,6.1094]
[1721180004225,21.949,163.74,163.71,6.1083]
[1721180004745,21.949,163.74,163.7,6.1086]
[1721180005440,21.949,163.74,163.69,15.2721]
[1721180005944,1.52701868,163.73,163.66,15.2751]
[1721180006129,1.52701868,163.73,163.66,25.2751]
[1721180006435,1.52701868,163.73,163.67,6.1095]
[1721180007350,1.52701868,163.73,163.68,6.1094]
[1721180008623,0.17,163.72,163.64,6.1106]
[1721180008824,51.299,163.74,163.65,1.22194565]
[1721180009134,1.52718078,163.73,163.65,1.22194565]
[1721180009729,1.52718078,163.73,163.66,6.1101]
[1721180009924,7.63478078,163.73,163.65,6.1105]
[1721180010445,6.108,163.72,163.64,21.3877]
[1721180010666,1.52734051,163.71,163.65,6.44142564]
[1721180010963,1.52734071,163.7,163.64,15.2769]
[1721180011125,1.52734071,163.7,163.64,21.3878]
[1721180011318,1.69743365,163.73,163.65,6.80867848]
[1721180011660,0.17,163.72,163.66,7.13465757]
[1721180011825,1.52729321,163.71,163.64,21.3875]
[1721180012019,1.5274908,163.7,163.64,21.3875]
[1721180012447,1.5274908,163.7,163.65,1.22181213]
[1721180013040,1.5274908,163.7,163.59,63.57292558]
[1721180013041,15.1547,163.68,163.6,15.2802]
[1721180013243,16.68229268,163.68,163.61,10.0]
[1721180013543,1.52752824,163.67,163.61,10.0]
[1721180013734,1.52752824,163.67,163.6,15.2802]
[1721180013735,1.52752824,163.67,163.62,6.1117]
[1721180014657,1.52752824,163.67,163.61,6.1119]
[1721180014866,1.52752824,163.67,163.6,15.2802]
[1721180015161,0.34,163.66,163.57,10.0]
[1721180015343,1.8678843,163.66,163.57,10.0]
[1721180015660,1.8678843,163.66,163.59,6.1124]
[1721180016453,1.8678843,163.66,163.6,6.1124]
[1721180016654,1.8678843,163.66,163.58,21.3951]
[1721180016852,6.111,163.64,163.56,6.1136]
[1721180017058,15.7985,163.62,163.55,15.2854]
[1721180017232,1.52828832,163.61,163.55,21.3995]
[1721180017431,1.5282679,163.6,163.55,21.3995]
[1721180017626,1.5282679,163.6,163.55,15.2854]
[1721180017855,1.5282679,163.6,163.56,6.1139]
[1721180018058,1.52827616,163.61,163.56,6.96582637]
[1721180019165,1.52827616,163.61,163.56,6.1139]
[1721180019459,1.52826669,163.6,163.55,21.3997]
[1721180020158,1.52826669,163.6,163.56,6.1138]
[1721180020340,1.52829587,163.61,163.56,6.1138]
[1721180020654,15.7985,163.62,163.56,6.1138]
[1721180020655,1.52829577,163.6,163.56,6.1138]
[1721180021234,1.52829577,163.6,163.55,21.3996]
[1721180021545,1.52833248,163.61,163.55,21.3996]
[1721180021745,1.52829662,163.6,163.55,21.3996]
[1721180022063,1.5282967,163.61,163.56,6.1138]
[1721180022561,1.5282967,163.61,163.56,7.33641314]
[1721180023269,1.5282967,163.61,163.56,6.1138]
[1721180023437,1.5282967,163.61,163.55,15.2854]
[1721180024080,1.5282967,163.61,163.53,10.0]
[1721180024081,1.52812997,163.6,163.54,6.1146]
[1721180024239,1.52831655,163.61,163.54,15.2861]
[1721180024434,1.52831655,163.61,163.55,7.33653376]
[1721180025265,6.3992,163.59,163.54,6.1144]
[1721180025570,1.52839425,163.58,163.54,6.1144]
[1721180026146,6.3992,163.59,163.55,6.1143]
[1721180026559,6.3992,163.59,163.54,6.1146]
[1721180026943,6.3992,163.59,163.55,6.1143]
[1721180027364,1.52839072,163.58,163.55,6.1143]